bitfinex/quotes_ETHUSD_20240922
["timestamp","ask_amount","ask_price","bid_price","bid_amount"]
[1727004456267,2.2766,2584.5,2584.2,0.53480973]
[1727004456472,0.06699916,2584.4,2584.2,0.53480973]
[1727004456722,0.06699916,2584.4,2584.2,1.09344578]
[1727004457077,0.06699916,2584.4,2584.2,0.55863605]
[1727004457583,0.06699916,2584.4,2584.2,4.09344578]
[1727004457787,0.06699916,2584.4,2584.3,3.53480973]
[1727004458109,0.06691291,2584.4,2584.3,0.53480973]
[1727004458316,0.06691291,2584.4,2584.3,4.14157064]
[1727004458523,0.06691291,2584.4,2584.3,1.14157064]
[1727004459878,0.06691291,2584.4,2584.3,1.14148033]
[1727004460580,0.06691291,2584.4,2584.3,0.60676091]
[1727004461312,0.06691291,2584.4,2584.3,1.14148033]
[1727004461935,2.2766,2584.5,2584.3,1.14148033]
[1727004462223,0.06698907,2584.4,2584.3,0.60676091]
[1727004462879,2.2766,2584.5,2584.3,0.60676091]
[1727004463080,0.06701178,2584.4,2584.3,0.60676091]
[1727004467310,0.06701178,2584.4,2584.1,0.53470929]
[1727004467700,2.2766,2584.5,2584.1,0.53470929]
[1727004473026,2.2766,2584.5,2584.0,4.20833359]
[1727004473721,2.2766,2584.5,2584.1,0.53486674]
[1727004476004,2.2766,2584.5,2584.0,3.53486674]
[1727004476200,2.50426,2584.5,2584.0,3.53486674]
[1727004476534,2.50426,2584.5,2583.9,5.13751927]
[1727004476741,2.50426,2584.5,2584.0,0.53498447]
[1727004477039,2.50426,2584.5,2584.0,3.53498447]
[1727004477703,3.31494527,2584.5,2584.0,0.53498447]
[1727004478028,2.3326,2584.3,2583.8,0.53498447]
[1727004479398,2.3326,2584.3,2583.7,4.1412967]
[1727004479599,2.3326,2584.3,2583.7,5.8753987]
[1727004479832,2.3326,2584.3,2583.8,0.53498447]
[1727004480003,2.3326,2584.3,2583.7,5.34041423]
[1727004480398,2.3326,2584.3,2583.8,0.53540145]
[1727004480595,2.3326,2584.3,2583.8,4.06116986]
[1727004480908,2.3326,2584.3,2583.9,1.20833359]
[1727004481108,2.4459,2584.6,2584.0,0.52576841]
[1727004481620,2.4459,2584.6,2584.0,5.26951774]
[1727004481827,2.4459,2584.6,2584.1,0.53469053]
[1727004482198,2.4459,2584.6,2584.1,4.07010627]
[1727004482401,2.4459,2584.6,2584.1,3.53469053]
[1727004482725,2.4459,2584.6,2584.1,0.53469053]
[1727004483236,2.4459,2584.6,2584.1,3.53469053]
[1727004483541,2.4459,2584.6,2584.2,0.58040691]
[1727004484514,0.06684338,2584.5,2584.2,0.58040691]
[1727004485151,0.06684338,2584.5,2584.3,3.0]
[1727004486055,0.06684338,2584.5,2584.3,3.60315048]
[1727004486235,0.06684338,2584.5,2584.3,3.52576841]
[1727004486441,2.4459,2584.9,2584.4,0.7783591]
[1727004489574,0.06711362,2584.8,2584.4,0.7783591]
[1727004500277,0.06711362,2584.8,2584.5,5.37957589]
[1727004500602,0.0378844,2585.0,2584.6,2.3022]
[1727004500801,0.0378844,2585.0,2584.7,0.07736777]
[1727004500964,0.0378844,2585.0,2584.7,3.31532455]
[1727004502398,0.0378844,2585.0,2584.7,3.23795678]
[1727004503564,0.0378844,2585.0,2584.6,2.3022]
[1727004503911,2.4236844,2585.0,2584.6,2.3022]
[1727004504480,0.06744296,2584.9,2584.6,2.3022]
[1727004509592,0.06744296,2584.9,2584.4,3.1103591]
[1727004509766,2.4236844,2585.0,2584.4,3.1103591]
[1727004509767,2.4236844,2585.0,2584.5,3.0]
[1727004509971,2.4236844,2585.0,2584.5,3.73186927]
[1727004510910,2.4236844,2585.0,2584.5,0.73186927]
[1727004511083,2.4236844,2585.0,2584.4,0.7783591]
[1727004512501,2.4236844,2585.0,2584.3,3.0]
[1727004513424,2.4236844,2585.0,2584.1,1.61097697]
[1727004513722,2.3983,2584.9,2584.1,0.40264338]
[1727004513886,2.3983,2584.8,2584.1,0.40264338]
[1727004514093,2.7903583,2584.8,2584.1,0.40264338]
[1727004514917,2.7903583,2584.8,2584.1,3.40264338]
[1727004515421,2.72298697,2584.8,2584.1,3.40264338]
[1727004517121,0.06739651,2584.7,2584.1,3.40264338]
[1727004517418,2.3073,2584.6,2584.1,3.40264338]
[1727004517620,2.3073,2584.6,2584.1,1.60174108]
[1727004517789,2.3073,2584.6,2584.1,0.40264338]
[1727004520543,2.3073,2584.6,2584.1,3.40264338]
[1727004520684,2.3073,2584.6,2584.1,0.40264338]
[1727004530135,2.4354,2584.9,2584.2,3.0]
[1727004530339,2.4354,2584.9,2584.2,3.07737871]
[1727004530565,0.06740079,2584.8,2584.3,0.71029557]
[1727004538230,0.06740079,2584.8,2584.2,3.0]
[1727004538535,2.2642,2584.7,2584.1,0.40264338]
[1727004542717,2.2642,2584.7,2584.2,5.96469542]
[1727004543314,2.2642,2584.7,2584.3,3.0]
[1727004544611,2.2642,2584.7,2584.2,5.4986]
[1727004544811,2.2642,2584.7,2584.3,3.7109577]
[1727004548953,2.2642,2584.7,2584.1,0.40264338]
[1727004553279,2.2642,2584.7,2584.3,3.0]
[1727004556060,2.2642,2584.7,2584.2,3.0]
[1727004556254,2.2642,2584.7,2584.1,0.40264338]
[1727004556255,2.331,2584.6,2584.1,0.40264338]
[1727004556418,2.331,2584.6,2584.1,1.61097697]
[1727004559962,2.331,2584.6,2584.1,0.40264338]
[1727004560255,2.331,2584.6,2584.1,1.61097697]
[1727004560490,2.331,2584.6,2584.1,0.40264338]
[1727004561320,2.331,2584.6,2584.2,0.53723054]
[1727004561535,3.57745659,2584.6,2584.2,0.53723054]
[1727004561836,2.4944,2584.4,2584.2,0.53723054]
[1727004562236,0.06727431,2584.3,2584.1,0.40264338]
[1727004562456,2.4944,2584.2,2584.1,0.40264338]
[1727004569079,2.4944,2584.5,2584.1,0.40264338]
[1727004569680,0.06718099,2584.4,2584.1,0.40264338]
[1727004570285,2.4944,2584.5,2584.1,0.40264338]
[1727004570791,0.06707217,2584.4,2584.1,0.40264338]
[1727004570998,2.4944,2584.5,2584.1,0.40264338]
[1727004571361,0.06707218,2584.4,2584.1,0.40264338]
[1727004571559,2.4944,2584.5,2584.1,0.40264338]
[1727004571994,2.4944,2584.5,2584.1,3.40264338]
[1727004572357,2.82490853,2584.5,2584.1,0.40264338]
[1727004572998,2.4944,2584.3,2584.1,0.40264338]
[1727004574965,0.81068527,2584.6,2584.1,0.40264338]
[1727004574966,2.4858,2584.5,2584.1,0.40264338]
[1727004575167,2.4858,2584.5,2584.1,3.97606894]
[1727004575387,0.06712905,2584.4,2584.1,3.97606894]
[1727004575591,2.4858,2584.5,2584.2,0.63485689]
[1727004590272,2.4063,2584.7,2584.2,0.63485689]
[1727004590442,0.81068527,2584.8,2584.3,5.3109]
[1727004590638,0.06719204,2584.7,2584.3,5.3109]
[1727004590839,0.81068527,2584.8,2584.3,5.3109]
[1727004591063,0.06717891,2584.6,2584.3,6.12391565]
[1727004591375,0.06722473,2584.7,2584.3,6.12391565]
[1727004591539,0.06713309,2584.5,2584.3,6.12391565]
[1727004591741,0.81068527,2584.7,2584.3,6.12391565]
[1727004591935,0.06708726,2584.4,2584.3,6.12391565]
[1727004592241,0.0671137,2584.4,2584.3,6.12391565]
[1727004592441,0.81068527,2584.7,2584.3,6.12391565]
[1727004592642,0.06720535,2584.6,2584.3,2.3109]
[1727004593332,0.81068527,2584.7,2584.3,2.3109]
[1727004593531,0.06719781,2584.5,2584.3,2.3109]
[1727004593748,0.81068527,2584.7,2584.3,2.3109]
[1727004594040,0.81068527,2584.8,2584.3,2.3109]
[1727004594241,0.06721926,2584.7,2584.3,2.3109]
[1727004594458,0.81068527,2584.7,2584.4,3.0]
[1727004594650,0.06718666,2584.6,2584.4,3.0]
[1727004595250,2.4689,2584.5,2584.1,0.40264338]
[1727004595448,0.81068527,2584.4,2583.8,15.58642629]
[1727004595762,3.27958527,2584.3,2583.8,15.58642629]
[1727004596542,3.27958527,2584.3,2583.9,3.0]
[1727004599799,2.4689,2584.3,2583.9,3.0]
[1727004599947,3.27958527,2584.3,2583.9,3.0]
[1727004600998,2.4689,2584.3,2583.9,3.0]
[1727004602889,2.4689,2584.3,2583.8,15.58642629]
[1727004602890,2.2847,2584.2,2583.8,15.58642629]
[1727004603077,2.2847,2584.1,2583.8,15.58642629]
[1727004606498,2.2847,2584.1,2583.5,3.0]
[1727004606703,2.2847,2584.1,2583.4,5.2835]
[1727004607002,2.2847,2584.1,2583.5,3.40262668]
[1727004609401,0.81068527,2584.0,2583.5,0.40262668]
[1727004609565,2.2847,2583.9,2583.4,3.0]
[1727004609772,2.2847,2583.9,2583.3,0.60636321]
[1727004610983,2.71584132,2583.9,2583.3,0.60636321]
[1727004614471,3.52652659,2583.9,2583.1,7.38]
[1727004614704,2.2884,2583.7,2583.1,7.38]
[1727004615617,2.2884,2583.7,2582.9,17.94155731]
[1727004615823,2.64142266,2583.7,2583.0,3.0]
[1727004617701,2.2884,2583.5,2583.0,3.0]
[1727004618780,0.06586111,2583.4,2583.0,3.0]
[1727004619098,2.2884,2583.3,2583.0,3.0]
[1727004624087,2.4062,2583.8,2583.2,3.0774127]
[1727004624704,2.4062,2583.8,2583.2,3.0]
[1727004624925,0.06596236,2583.7,2583.3,0.54851]
[1727004625429,2.4062,2583.8,2583.3,0.54851]
[1727004625792,0.06596236,2583.7,2583.3,0.54851]
[1727004626288,2.4062,2583.8,2583.3,0.54851]
[1727004626492,0.06601044,2583.7,2583.3,0.54851]
[1727004626733,2.4062,2583.8,2583.4,0.354851]
[1727004627033,2.4062,2583.8,2583.3,0.54851]
[1727004627426,0.06594296,2583.7,2583.3,0.54851]
[1727004627787,2.4062,2583.8,2583.3,0.54851]
[1727004628230,0.06600495,2583.7,2583.3,0.54851]
[1727004628591,2.4062,2583.8,2583.3,0.54851]
[1727004628993,0.06601817,2583.7,2583.3,0.54851]
[1727004629535,2.4062,2584.1,2583.5,2.4851]
[1727004629838,2.4062,2584.1,2583.6,3.07739993]
[1727004630046,0.06625792,2584.0,2583.6,3.07739993]
[1727004630336,2.4062,2584.1,2583.6,3.07739993]
[1727004630540,2.4062,2584.1,2583.6,3.66913502]
[1727004631433,2.4062,2584.4,2583.6,3.66913502]
[1727004631636,2.4062,2584.4,2583.7,5.4851]
[1727004631835,0.06643509,2584.3,2583.8,3.0]
[1727004632041,0.06643509,2584.3,2583.8,3.07739682]
[1727004633331,0.06643509,2584.3,2583.8,3.69282001]
[1727004633647,0.06643509,2584.3,2583.8,3.61542319]
[1727004633846,0.06643509,2584.3,2583.7,2.4851]
[1727004633994,0.06643509,2584.3,2583.7,5.4851]
[1727004634201,2.4062,2584.2,2583.7,2.4851]
[1727004634543,0.06632624,2584.1,2583.5,2.4851]
[1727004634930,2.4062,2584.2,2583.5,2.4851]
[1727004635144,2.4062,2584.2,2583.6,3.54851]
[1727004635465,0.06635267,2584.1,2583.6,3.54851]
[1727004635664,2.4062,2584.2,2583.6,3.54851]
[1727004635957,0.06635267,2584.1,2583.6,3.54851]
[1727004636325,2.4062,2584.2,2583.6,3.54851]
[1727004636845,0.06623371,2584.1,2583.6,3.54851]
[1727004637051,2.4062,2584.2,2583.7,0.603361]
[1727004637264,0.06626015,2584.1,2583.7,0.603361]
[1727004642367,2.4062,2584.2,2583.7,0.603361]
[1727004644474,2.4062,2584.2,2583.5,5.4851]
[1727004645727,2.4062,2584.2,2583.5,2.4851]
[1727004647567,2.4062,2584.2,2583.6,3.0]
[1727004648164,2.4062,2584.2,2583.7,0.07739745]
[1727004650049,2.4062,2584.2,2583.6,0.33514545]
[1727004650253,2.72788853,2584.2,2583.6,0.33514545]
[1727004650438,2.72788853,2584.2,2583.4,0.33514545]
[1727004650865,2.72788853,2584.2,2583.5,0.33514545]
[1727004651024,2.72788853,2584.2,2583.6,0.33514545]
[1727004651225,2.72788853,2584.2,2583.4,0.33514545]
[1727004651432,2.72788853,2584.2,2583.5,0.33514545]
[1727004651657,2.72788853,2584.2,2583.6,0.33514545]
[1727004651966,2.4062,2584.2,2583.6,5.4921]
[1727004652156,2.4062,2584.2,2583.6,5.82724545]
[1727004653733,2.4062,2584.2,2583.6,5.4921]
[1727004654135,2.4062,2584.2,2583.6,2.4921]
[1727004654336,2.4062,2584.2,2583.7,3.0]
[1727004654735,2.4062,2584.2,2583.6,5.4921]
[1727004654950,2.4062,2584.2,2583.6,6.49536916]
[1727004655153,2.4062,2584.2,2583.6,6.16007574]
[1727004655357,2.4062,2584.2,2583.6,6.49536916]
[1727004655677,2.4062,2584.2,2583.6,6.16007574]
[1727004655968,2.4062,2584.2,2583.6,6.49536916]
[1727004656276,2.4062,2584.2,2583.6,6.16007574]
[1727004656632,2.4062,2584.2,2583.6,6.49536916]
[1727004656832,2.4062,2584.2,2583.7,3.65727668]
[1727004657533,3.19408527,2584.4,2583.8,5.4699]
[1727004657785,0.06662978,2584.3,2583.9,3.07738691]
[1727004658633,2.3834,2584.4,2583.9,3.41248492]
[1727004658838,2.3834,2584.4,2584.0,0.63201304]
[1727004659038,0.06673768,2584.3,2584.1,0.07738629]
[1727004659451,2.3834,2584.4,2584.0,0.63201304]
[1727004659983,0.06686885,2584.3,2584.0,0.63201304]
[1727004660146,2.3834,2584.4,2584.0,0.63201304]
[1727004660646,0.066733,2584.3,2584.0,0.63201304]
[1727004661093,2.3834,2584.4,2584.0,0.63201304]
[1727004661500,0.0669064,2584.3,2584.0,0.63201304]
[1727004661683,2.3834,2584.4,2584.0,0.63201304]
[1727004661879,0.06693283,2584.3,2584.0,0.63201304]
[1727004662109,2.3834,2584.4,2584.1,0.3632013]
[1727004662299,2.3834,2584.4,2584.0,0.63201304]
[1727004662494,0.06682758,2584.3,2584.0,0.63201304]
[1727004662901,2.3834,2584.4,2584.0,0.63201304]
[1727004663285,0.0668408,2584.3,2584.0,0.63201304]
[1727004663815,2.3834,2584.4,2584.0,0.70939967]
[1727004664001,2.3834,2584.7,2584.2,3.0]
[1727004664201,0.06682192,2584.3,2584.2,3.0]
[1727004664518,2.3834,2584.7,2584.1,0.37093997]
[1727004664689,2.3834,2584.7,2583.9,2.4699]
[1727004665009,2.45042987,2584.6,2583.9,2.4699]
[1727004665216,2.45042987,2584.6,2583.9,2.80485756]
[1727004665419,2.45042987,2584.6,2584.0,3.0]
[1727004665574,2.45042987,2584.6,2583.9,2.4699]
[1727004665773,2.45042987,2584.6,2584.0,3.24699]
[1727004666420,2.45042987,2584.6,2584.0,3.58194756]
[1727004666624,2.45042987,2584.6,2584.0,3.24699]
[1727004669247,2.45042987,2584.6,2583.7,0.3351172]
[1727004669406,2.3834,2584.5,2583.7,0.3351172]
[1727004669604,2.3834,2584.4,2583.7,0.3351172]
[1727004669800,2.45021375,2584.4,2583.7,0.3351172]
[1727004670616,2.45021375,2584.4,2583.7,0.85025948]
[1727004670808,2.3834,2584.4,2583.9,3.0]
[1727004671008,0.06686214,2584.3,2583.9,3.0773893]
[1727004671813,0.06686214,2584.3,2583.9,3.4125065]
[1727004673201,2.3834,2584.4,2583.9,3.0773893]
[1727004673524,0.0667756,2584.2,2583.9,3.0]
[1727004673848,2.3834,2584.4,2584.0,0.97214429]
[1727004674043,0.06674298,2584.1,2584.0,0.97214429]
[1727004674249,2.3834,2584.4,2584.0,1.04953318]
[1727004674448,0.06674297,2584.1,2584.0,1.04953318]
[1727004674620,2.3834,2584.4,2584.0,0.97214429]
[1727004674817,2.3834,2584.4,2584.1,0.43846789]
[1727004675018,0.06666855,2584.3,2584.1,0.43846789]
[1727004675225,2.3834,2584.4,2584.1,0.43846789]
[1727004675633,0.06685792,2584.3,2584.1,0.43846789]
[1727004677221,0.06685792,2584.3,2584.0,0.33514707]
[1727004677435,0.06685792,2584.3,2583.9,3.33514707]
[1727004677636,2.2662,2584.2,2583.9,0.33514707]
[1727004677845,2.2662,2584.2,2583.7,0.33514707]
[1727004677846,2.33304796,2584.2,2583.7,0.33514707]
[1727004678053,2.2662,2584.2,2583.8,0.33514707]
[1727004678412,0.06665671,2584.1,2583.8,0.33514707]
[1727004678616,0.06665671,2584.1,2583.6,0.33514707]
[1727004678813,2.2662,2584.2,2583.7,0.80516669]
[1727004679119,2.2662,2584.2,2583.8,0.33514707]
[1727004679955,2.2662,2584.2,2583.7,0.83758068]
[1727004680109,2.2662,2584.2,2583.8,0.33533519]
[1727004680549,2.2662,2584.2,2583.9,0.0773964]
[1727004680754,0.81068527,2584.5,2584.0,3.0]
[1727004680956,2.3079,2584.6,2584.1,0.69248548]
[1727004681258,2.3079,2584.6,2584.2,5.2683]
[1727004681416,2.3079,2584.6,2584.2,5.60363519]
[1727004681616,2.3079,2584.6,2584.3,3.0]
[1727004681816,2.3079,2584.6,2584.3,3.92961207]
[1727004682649,2.3079,2584.6,2584.3,4.00699227]
[1727004683027,2.3079,2584.6,2584.3,3.92961207]
[1727004685680,2.3079,2584.6,2584.3,0.92961207]
[1727004685874,2.3079,2584.6,2584.1,3.33506664]
[1727004686073,2.3079,2584.6,2584.0,2.2683]
[1727004686418,2.3079,2584.6,2584.1,3.33493921]
[1727004686576,0.06729053,2584.5,2584.1,3.0]
[1727004686775,2.3079,2584.6,2584.0,2.2683]
[1727004686976,2.3079,2584.6,2584.1,3.52683]
[1727004687379,0.06730238,2584.5,2584.1,3.52683]
[1727004687601,0.06730238,2584.5,2584.1,3.86183369]
[1727004688332,2.3079,2584.6,2584.1,4.19683376]
[1727004689288,0.06728328,2584.5,2584.1,4.19683376]
[1727004689504,0.06728328,2584.5,2584.2,0.64651338]
[1727004693202,0.06728328,2584.5,2584.2,0.98157133]
[1727004693706,0.06728328,2584.5,2584.2,0.64651338]
[1727004694650,0.06728328,2584.5,2584.2,0.98157822]
[1727004694803,0.06728328,2584.5,2584.2,0.64651338]
[1727004695021,0.06728328,2584.5,2584.3,0.43939625]
[1727004698470,0.06728328,2584.5,2584.2,0.9817222]
[1727004698772,0.06728328,2584.5,2584.3,0.33520882]
[1727004699522,2.271,2584.4,2584.3,0.33520882]
[1727004699755,2.271,2584.4,2584.0,0.33520882]
[1727004699938,2.33836035,2584.4,2584.1,0.33520882]
[1727004700139,2.33836035,2584.4,2584.2,0.33520882]
[1727004700373,2.33836035,2584.4,2584.0,0.3354503]
[1727004700533,2.33836035,2584.4,2584.1,0.33545244]
[1727004700737,2.33836035,2584.4,2583.9,0.07738732]
[1727004700932,2.33836035,2584.4,2584.2,0.33544519]
[1727004701369,2.33836035,2584.4,2584.3,0.33544519]
[1727004701666,0.06736035,2584.4,2584.3,0.80546481]
[1727004701838,0.81068527,2584.7,2584.3,6.27613986]
[1727004702039,0.81068527,2584.7,2584.4,3.33544519]
[1727004702274,0.81068527,2584.7,2584.5,0.96305918]
[1727004702563,0.81068527,2584.7,2584.5,0.62761399]
[1727004702776,0.81068527,2584.8,2584.5,0.96292938]
[1727004702926,0.81068527,2584.9,2584.5,0.62761399]
[1727004703361,0.81068527,2584.9,2584.3,2.3933]
[1727004703535,2.271,2584.8,2584.4,0.33530297]
[1727004703744,2.271,2584.8,2584.5,0.33530297]
[1727004703968,3.08168527,2584.8,2584.3,2.3933]
[1727004704180,3.08168527,2584.8,2584.4,3.33531119]
[1727004704332,3.08168527,2584.8,2584.5,0.33531119]
[1727004704528,3.08168527,2584.8,2584.5,0.33526118]
[1727004705129,3.08168527,2584.8,2584.3,2.3933]
[1727004705375,2.271,2584.8,2584.4,3.57457687]
[1727004705585,2.271,2584.8,2584.5,0.33524687]
[1727004706348,2.271,2584.8,2584.4,3.23933]
[1727004706538,2.271,2584.8,2584.5,0.33517572]
[1727004706879,0.0675569,2584.7,2584.5,0.3351823]
[1727004707064,2.271,2584.8,2584.5,0.59678123]
[1727004707380,2.271,2584.8,2584.6,0.33516022]
[1727004707540,0.81068527,2584.9,2584.6,0.33516022]
[1727004707736,3.13566967,2585.0,2584.6,0.33514772]
[1727004709144,2.3249844,2585.0,2584.6,0.33514772]
[1727004709735,2.3249844,2585.0,2584.6,0.41251683]
[1727004710360,2.3249844,2585.0,2584.6,3.16807964]
[1727004710586,0.0378844,2585.0,2584.7,3.0]
[1727004710771,0.0378844,2585.0,2584.8,0.07736604]
[1727004711459,0.0378844,2585.0,2584.8,0.41235528]
[1727004711659,0.0378844,2585.0,2584.9,0.33498924]
[1727004711871,0.0378844,2585.0,2584.9,0.67622477]
[1727004712295,0.0378844,2585.0,2584.9,0.34123553]
[1727004712693,0.0378844,2585.0,2584.9,2.3307]
[1727004715205,0.0378844,2585.0,2584.8,3.07736604]
[1727004717535,0.0378844,2585.0,2584.8,0.07736604]
[1727004721783,0.06781403,2584.9,2584.8,0.07736604]
[1727004721984,0.0378844,2585.0,2584.8,0.07736604]
[1727004722191,0.0378844,2585.0,2584.8,3.66122893]
[1727004725355,0.0378844,2585.0,2584.8,3.58386289]
[1727004733640,0.0378844,2585.0,2584.9,2.93088069]
[1727004733827,0.0378844,2585.0,2584.9,6.91971169]
[1727004734429,0.0378844,2585.0,2584.9,7.37676412]
[1727004734771,0.0378844,2585.0,2584.9,9.56617369]
[1727004735071,0.0378844,2585.0,2584.9,9.12734269]
[1727004735270,0.0378844,2585.0,2584.9,9.12739326]
[1727004735475,0.0378844,2585.0,2584.9,8.59292919]
[1727004736443,0.0378844,2585.0,2584.9,9.1272747]
[1727004737434,0.0378844,2585.0,2584.9,9.12716871]
[1727004737835,0.0378844,2585.0,2584.9,44.12716871]
[1727004739384,0.0378844,2585.0,2584.9,44.12702855]
[1727004739584,0.0378844,2585.8,2585.0,3.55]
[1727004739795,0.0378844,2585.8,2585.3,2.4228]
[1727004739939,0.0378844,2585.8,2585.5,3.0]
[1727004740169,0.0378844,2585.8,2585.7,5.4228]
[1727004740471,0.0378844,2585.8,2585.7,5.97014803]
[1727004742805,0.0378844,2585.8,2585.7,0.54734803]
[1727004743101,0.0378844,2585.8,2585.7,6.34221932]
[1727004743867,0.0378844,2585.8,2585.7,6.81489091]
[1727004744611,0.0378844,2585.8,2585.7,6.89221507]
[1727004745121,0.0378844,2585.8,2585.7,41.89221507]
[1727004745326,0.0378844,2585.8,2585.7,41.81489091]
[1727004746193,0.0378844,2585.8,2585.7,40.79487129]
[1727004746589,0.0378844,2585.8,2585.7,5.79487129]
[1727004748003,0.0378844,2585.8,2585.7,0.37207129]
[1727004748447,0.0378844,2585.8,2585.7,0.44940396]
[1727004750004,0.0378844,2585.8,2585.7,0.94760726]
[1727004750409,0.0378844,2585.8,2585.7,5.99833597]
[1727004751556,0.0378844,2585.8,2585.7,10.58133597]
[1727004751853,0.0378844,2585.8,2585.7,10.5040033]
[1727004752146,0.0378844,2585.8,2585.7,9.6258183]
[1727004752345,0.0378844,2585.8,2585.7,5.4228]
[1727004752547,0.0378844,2585.8,2585.7,5.96508]
[1727004755942,0.0378844,2585.8,2585.7,6.4632833]
[1727004757529,0.0378844,2585.8,2585.7,7.09061069]
[1727004757775,0.0378844,2585.8,2585.7,7.0132833]
[1727004758074,0.0378844,2585.8,2585.7,13.0500813]
[1727004758228,0.0378844,2585.8,2585.7,11.8500813]
[1727004758915,0.0378844,2585.8,2585.7,10.62896]
[1727004759182,0.0378844,2585.8,2585.7,6.51508]
[1727004759484,0.0378844,2585.8,2585.7,5.96508]
[1727004760249,0.0378844,2585.8,2585.7,0.54228]
[1727004770519,0.0378844,2585.8,2585.7,6.49651272]
[1727004778615,0.0378844,2585.8,2585.7,15.3066943]
[1727004779605,0.0378844,2585.8,2585.7,16.04199941]
[1727004780171,0.0378844,2585.8,2585.7,9.59099187]
[1727004780580,0.0378844,2585.8,2585.7,17.27314688]
[1727004781124,0.0378844,2585.8,2585.6,2.00832218]
[1727004781125,0.0378844,2585.8,2585.6,1.20598425]
[1727004781290,2.4765844,2585.8,2585.7,0.33360008]
[1727004781496,2.4765844,2585.8,2585.6,0.33360008]
[1727004781676,2.53879228,2585.8,2585.2,0.33360008]
[1727004781881,2.4387,2585.6,2585.0,0.33360008]
[1727004782289,0.0619606,2585.5,2584.8,18.49733044]
[1727004782491,2.4387,2585.4,2584.8,18.49733044]
[1727004782822,2.50062802,2585.4,2584.9,0.86023104]
[1727004783124,2.4387,2585.4,2584.9,0.93759432]
[1727004783621,2.4387,2585.4,2584.9,5.92140142]
[1727004784509,2.4387,2585.4,2584.9,3.93759425]
[1727004784690,2.4387,2585.4,2584.9,3.93749427]
[1727004784892,2.4387,2585.4,2584.9,3.07736321]
[1727004785753,2.4387,2585.4,2584.9,3.0]
[1727004786018,2.4387,2585.4,2584.9,3.07735952]
[1727004786351,2.68257,2585.4,2584.9,3.0]
[1727004787051,2.68257,2585.4,2584.8,0.40314691]
[1727004788165,2.37894112,2585.3,2584.8,0.40314691]
[1727004788534,2.3174,2585.3,2584.8,0.40314691]
[1727004788737,2.3174,2585.1,2584.8,0.40314691]
[1727004789256,2.3174,2585.1,2584.8,18.90047735]
[1727004789459,2.3174,2585.1,2584.8,18.49733044]
[1727004790263,2.3174,2584.9,2584.8,18.49733044]
[1727004790458,2.3174,2584.9,2584.4,18.49733044]
[1727004790754,2.3174,2584.7,2584.4,18.49733044]
[1727004792452,2.3174,2584.7,2584.5,18.49733044]
[1727004795720,2.3174,2584.7,2584.6,18.49733044]
[1727004816608,2.3174,2584.7,2583.8,2.2858]
[1727004816874,2.3174,2584.7,2583.8,2.75132684]
[1727004817176,2.746414,2584.6,2583.9,3.0]
[1727004817379,2.80674258,2584.6,2583.9,3.0]
[1727004818779,2.80674258,2584.6,2583.8,0.46552684]
[1727004820073,2.55182858,2584.6,2583.8,0.46552684]
[1727004820381,2.55182858,2584.6,2584.0,2.2596]
[1727004822500,2.4915,2584.6,2584.0,2.2596]
[1727004824699,2.4915,2584.6,2584.1,3.0]
[1727004825966,2.4915,2584.6,2584.2,0.07738715]
[1727004826317,2.3423,2584.9,2584.3,5.4847]
[1727004826463,2.3423,2584.9,2584.4,3.6027614]
[1727004828701,0.06057154,2584.8,2584.4,3.6027614]
[1727004829030,2.3423,2584.9,2584.4,3.6027614]
[1727004829422,0.06062165,2584.8,2584.4,3.6027614]
[1727004829857,2.3423,2584.9,2584.4,3.6027614]
[1727004830361,0.06064808,2584.8,2584.4,3.6027614]
[1727004830655,0.06064808,2584.8,2584.5,0.60874614]
[1727004831013,2.3423,2584.9,2584.5,0.60874614]
[1727004831208,2.3423,2585.1,2584.5,0.68612333]
[1727004831411,2.3423,2585.1,2584.5,0.60874614]
[1727004831633,0.06090285,2585.0,2584.6,0.36861191]
[1727004831909,2.3423,2585.1,2584.6,0.44598489]
[1727004832123,2.3423,2585.1,2584.7,5.4847]
[1727004838945,1.42161773,2585.6,2584.8,2.2588]
[1727004839151,0.0606955,2585.0,2584.8,2.2588]
[1727004839375,2.2593,2585.5,2584.8,2.2588]
[1727004839546,0.06070721,2584.9,2584.8,2.2588]
[1727004839746,2.2593,2585.3,2584.8,2.2588]
[1727004840177,0.06085983,2585.2,2584.8,2.2588]
[1727004840356,2.2593,2585.3,2584.8,2.2588]
[1727004840562,0.06083508,2585.1,2584.6,2.4847]
[1727004840771,2.2593,2585.3,2584.6,2.4847]
[1727004841087,0.24648898,2585.4,2584.2,9.8647]
[1727004841088,2.319,2585.1,2584.2,9.8647]
[1727004841292,2.319,2585.1,2584.2,2.4847]
[1727004841586,3.53502791,2585.1,2584.0,28.36203044]
[1727004841815,2.319,2585.0,2584.0,28.36203044]
[1727004842121,2.319,2584.8,2584.0,28.36203044]
[1727004842676,2.319,2584.8,2584.1,3.0]
[1727004845898,2.319,2584.8,2584.0,5.4847]
[1727004846733,2.319,2584.8,2583.9,3.40302277]
[1727004847030,2.319,2584.8,2583.9,3.0]
[1727004847232,2.319,2584.6,2583.9,3.0]
[1727004847432,2.319,2584.6,2584.0,0.46552684]
[1727004849383,2.319,2584.6,2583.9,3.0]
[1727004851689,2.319,2584.6,2583.9,3.46552684]
[1727004851982,2.319,2584.6,2583.9,0.46552684]
[1727004852190,0.27078531,2584.5,2583.9,0.46552684]
[1727004852341,2.319,2584.4,2583.9,0.46552684]
[1727004852542,2.319,2584.4,2583.8,3.0]
[1727004860792,2.319,2584.4,2583.7,3.0]
[1727004861925,2.319,2584.4,2583.7,3.49584201]
[1727004862085,2.4851,2584.2,2583.7,3.49584201]
[1727004863721,2.4851,2584.2,2583.7,0.49584201]
[1727004864341,2.4851,2584.2,2583.5,0.60636189]
[1727004864797,2.4851,2584.2,2583.5,1.1022039]
[1727004866223,2.4851,2584.2,2583.3,7.38]
[1727004866431,0.25897853,2584.3,2583.1,3.04184116]
[1727004866432,2.4851,2584.0,2583.1,10.42184116]
[1727004866928,2.4851,2584.0,2583.1,10.91768317]
[1727004867233,2.4851,2584.0,2583.2,3.0]
[1727004867785,2.4851,2584.0,2583.2,0.49584201]
[1727004868226,0.05951923,2583.9,2583.2,0.49584201]
[1727004868435,2.4851,2583.8,2583.2,0.49584201]
[1727004868605,2.73956192,2583.7,2583.2,0.49584201]